Cogmind - Beta 10.2 @@@ ROGUE MODE // 2021.08.16 @ 04:22:26 Player: singlespace Result: Destroyed by B-75 Beast with Magnetic Acceleration Cannon Performance ------------- Evolutions (3) 1500 Regions Visited (7) 1400 Robots Destroyed (42) 210 Value Destroyed (1357) 1357 Prototype IDs (3) 60 Alien Tech Used (0) 0 Bonus (518) 518 TOTAL SCORE: 5045 Bonus ------- High Alert Combat Kills 18 Entered Garrisons 200 Aligned with FarCom 300 Cogmind --------- Core Integrity 0/700 Matter 62/300 Energy 64/100 System Corruption 4% Temperature Cool (12) Movement Core (100) Ox1 Location -7/Garrison Parts ------- > --- POWER (2) -------- (None) > --- PROPULSION (5) --- (None) > --- UTILITY (4) ------ Target Analyzer PSU Rigger > --- WEAPON (2) ------- Remote Datajack > --- INVENTORY (4) ---- Improved EM Pulse Cannon Peak State ------------ > --- POWER ------------ Nuclear Core Improved Deuterium Engine > --- PROPULSION ------- Aluminum Leg Aluminum Leg Improved Aluminum Leg Improved Aluminum Leg Carbon-fiber Leg > --- UTILITY ---------- Humpback Targeting Computer PSU Rigger > --- WEAPON ----------- Improved EM Pulse Cannon Assault Cannon > --- INVENTORY -------- Light Deuterium Engine Nuclear Core Nuclear Core Nuclear Core Light Nuclear Core Improved Heat Sink Humpback High-capacity Battery Medium Matter Pod Target Analyzer Improved Power Shielding Layered Light Armor Plating Layered Light Armor Plating Layered Light Armor Plating Layered Light Armor Plating Reactive Plating Improved EM Pulse Cannon Improved EM Pulse Cannon Heavy Assault Rifle Heavy Assault Rifle Improved Grenade Launcher Remote Datajack [Rating: 40] Favorites ----------- Power Light Nuclear Core Engine Ion Engine Power Core Light Nuclear Core Propulsion Aluminum Leg Leg Aluminum Leg Utility Humpback Device PSU Rigger Storage Humpback Processor Targeting Computer Protection Reactive Plating Weapon Heavy Assault Rifle Energy Gun Gatling Laser Energy Cannon Improved EM Pulse Cannon Ballistic Gun Heavy Assault Rifle Ballistic Cannon Assault Cannon Launcher Improved Grenade Launcher Special Weapon Remote Datajack Build | -11 -10 -10 -10 -9 -8 -7 -7 ------- Run | Scr Mat Min Exi Min Mat Fac Gar Slots Evolved 6 | . . . . . 4 2 . Power 1 | . . . . . . 1 . Propulsion 3 | . . . . . 2 1 . Utility 2 | . . . . . 2 . . Weapon . | . . . . . . . . Parts Attached 73 | 5 15 1 1 . 19 5 27 Power 14 | 1 4 . . . 2 2 5 Engine 7 | 1 3 . . . 1 1 1 Core 7 | . 1 . . . 1 1 4 Reactor . | . . . . . . . . Propulsion 22 | 2 2 1 . . 10 1 6 Treads . | . . . . . . . . Leg 22 | 2 2 1 . . 10 1 6 Wheel . | . . . . . . . . Hover . | . . . . . . . . Flight . | . . . . . . . . Utility 17 | 1 3 . 1 . 4 . 8 Device 8 | . 2 . . . 2 . 4 Storage 5 | 1 1 . 1 . 1 . 1 Processor 2 | . . . . . 1 . 1 Hackware . | . . . . . . . . Protection 2 | . . . . . . . 2 Artifact . | . . . . . . . . Weapon 20 | 1 6 . . . 3 2 8 Energy Gun 3 | 1 . . . . . . 2 Energy Cannon 5 | . . . . . . 2 3 Ballistic Gun 7 | . 5 . . . 2 . . Ballistic Cannon 2 | . 1 . . . 1 . . Launcher 2 | . . . . . . . 2 Special Weapon 1 | . . . . . . . 1 Impact Weapon . | . . . . . . . . Slashing Weapon . | . . . . . . . . Piercing Weapon . | . . . . . . . . Special Melee Weapon . | . . . . . . . . Unidentified Prototypes 1 | . . . . . 1 . . Parts Lost 26 | . 1 1 . . 1 . 23 Power 6 | . . . . . . . 6 Propulsion 9 | . . . . . 1 . 8 Utility 5 | . . 1 . . . . 4 Weapon 6 | . 1 . . . . . 5 Highest Loss Streak 17 | . 1 1 . . 1 . 17 Average Slot Usage (%) 87 | . 93 86 84 85 89 92 81 Engine 1 | . 11 . . . 1 . 2 Core 10 | . 2 14 14 14 7 14 10 Leg 30 | . 27 28 28 28 35 38 30 Device 4 | . 9 1 . . 7 7 6 Storage 12 | . 14 14 13 14 10 7 6 Processor 3 | . . . . . 8 7 7 Ballistic Gun 17 | . 17 28 28 28 9 . . Ballistic Cannon 3 | . 7 . . . 8 7 2 Naked Turns . | . . . . . . . . Heaviest Build 119 | 11 46 44 91 91 100 111 119 Greatest Support 63 | 20 20 20 20 20 54 61 63 Greatest Overweight (x) 31 | 2 4 2 4 4 2 1 31 Average Overweight (x) 2 | . 1 2 3 4 1 1 1 Largest Inventory Capacity 24 | 6 12 12 24 24 24 24 24 Average Capacity 20 | 5 10 12 21 24 24 24 23 Most Carried 24 | 4 12 12 18 20 24 23 24 Average Carried 17 | 1 6 11 15 19 22 22 19 Final Capacity 24 | 6 12 12 24 24 24 24 4 Final Carried 24 | 2 12 12 18 20 24 22 1 Class Distribution -------------------- 67% | Hauler-Mutant 25% | Mutant 7% | Scavenger-Mutant Dominant Class ---------------- Mutant | -10/Materials Mutant | -10/Mines Hauler-Mutant | -10/Exiles Hauler-Mutant | -9/Mines Hauler-Mutant | -8/Materials Hauler-Mutant | -7/Factory Hauler-Mutant | -7/Garrison Resources | -11 -10 -10 -10 -9 -8 -7 -7 ----------- Run | Scr Mat Min Exi Min Mat Fac Gar Matter Collected 1520 | 250 285 90 16 33 607 . 239 Remotely . | . . . . . . . . Salvage Created 1203 | . 293 90 . . 444 . 376 Parts 89 | . 24 4 . . 38 . 23 Haulers Intercepted . | . . . . . . . . Recyclers Shooed . | . . . . . . . . Parts Field Recycled . | . . . . . . . . Retrieved Matter . | . . . . . . . . Parts Self-Destructed . | . . . . . . . . Prevented . | . . . . . . . . Kills | -11 -10 -10 -10 -9 -8 -7 -7 ------- Run | Scr Mat Min Exi Min Mat Fac Gar Combat Hostiles Destroyed 39 | . 9 2 . . 12 . 16 Guns 16 | . 7 2 . . 5 . 2 Cannons 13 | . 2 . . . 7 . 4 AOE 10 | . . . . . . . 10 Classes Destroyed 6 | . 3 . . . 3 . . Builder 1 | . . . . . 1 . . Watcher 2 | . 1 . . . 1 . . Swarmer 17 | . 3 . . . 4 . 10 Grunt 15 | . 6 2 . . 3 . 4 Duelist 2 | . . . . . 1 . 1 Sentry 5 | . . . . . 4 . 1 Best Kill Streak 5 | . 3 2 . . 4 . 5 Combat Bots Only 5 | . 3 2 . . 4 . 5 Max Kills in Single Turn 2 | . 1 2 . . 1 . 2 Gunslinging 1 | . . 1 . . . . . Exploded 2 | . . . . . . . 2 Melee . | . . . . . . . . Uniques/NPCs Destroyed . | . . . . . . . . Combat | -11 -10 -10 -10 -9 -8 -7 -7 -------- Run | Scr Mat Min Exi Min Mat Fac Gar Damage Taken 4324 | . 526 26 . . 708 . 3064 Core 897 | . 116 . . . 64 . 717 Absorbed by Shields . | . . . . . . . . Core Remaining (%) 80 | 100 . . . 53 88 . . Volleys Fired 120 | . 32 5 1 . 44 . 38 Largest 2 | . 2 2 2 . 2 . 2 Hottest 149 | . 70 46 46 . 67 . 149 Shots Fired 226 | . 64 10 2 . 88 . 62 Gun 118 | . 50 10 2 . 44 . 12 Cannon 93 | . 14 . . . 44 . 35 Launcher 14 | . . . . . . . 14 Special 1 | . . . . . . . 1 Kinetic 164 | . 51 10 2 . 88 . 13 Thermal 25 | . 13 . . . . . 12 Explosive 14 | . . . . . . . 14 Electromagnetic 22 | . . . . . . . 22 Robot Hit Streak 14 | . 4 8 . . 14 . 14 Robot Miss Streak 4 | . 4 2 . . 2 . 4 Penetration Max . | . . . . . . . . Secondary Targets 2 | . 1 1 . . . . . Max Gunslinging Chain 1 | . 1 1 . . . . . Shots Hit Robots 135 | . 33 8 . . 48 . 46 Core Hits 70 | . 15 4 . . 19 . 32 Critical Hits 2 | . 2 . . . . . . Critical Kills . | . . . . . . . . Critical Parts Destroyed 2 | . 2 . . . . . . Melee Attacks . | . . . . . . . . Impact . | . . . . . . . . Slashing . | . . . . . . . . Piercing . | . . . . . . . . Sneak Attacks . | . . . . . . . . Combat Hostiles . | . . . . . . . . Follow-up Attacks . | . . . . . . . . Damage Inflicted 3371 | . 406 116 . . 919 . 1930 Guns 1020 | . 303 116 . . 410 . 191 Cannons 1142 | . 103 . . . 509 . 530 Explosions 1209 | . . . . . . . 1209 Melee . | . . . . . . . . Ramming . | . . . . . . . . Kinetic 1610 | . 356 116 . . 919 . 219 Thermal 361 | . 50 . . . . . 311 Explosive 1089 | . . . . . . . 1089 Electromagnetic 311 | . . . . . . . 311 Impact . | . . . . . . . . Slashing . | . . . . . . . . Piercing . | . . . . . . . . Highest Corruption 4 | . . . . . . . 4 Average Corruption 3 | . . . . . . . 3 Corruption Purged . | . . . . . . . . Effects 8 | . . . . . . . 8 Message Errors 1 | . . . . . . . 1 Heat Flow Errors 2 | . . . . . . . 2 Parts Rejected 1 | . . . . . . . 1 Targeting Errors 3 | . . . . . . . 3 Weapon Failures 1 | . . . . . . . 1 Overload Shots . | . . . . . . . . Overflow Damage 157 | . . . . . . . 157 Projectiles 5 | . . . . . . . 5 Explosions 152 | . . . . . . . 152 Melee . | . . . . . . . . Knockbacks 12 | . 1 . . . 5 . 6 Impact . | . . . . . . . . Kinetic 11 | . 1 . . . 5 . 5 Secondary 1 | . . . . . . . 1 Self-Inflicted Damage 135 | . . . . . . . 135 Shots 4 | . . . . . . . 4 Rammed . | . . . . . . . . Targets Rammed . | . . . . . . . . Kicked . | . . . . . . . . Crushed . | . . . . . . . . Highest Temperature 412 | . 90 6 . . 14 . 412 Average Temperature 72 | . 27 4 . . 5 . 113 Received Heat Transfer 1029 | . 177 15 . . 225 . 612 Effects 2 | . . . . . . . 2 Shutdowns 1 | . . . . . . . 1 Damage (minor) 1 | . . . . . . . 1 Siege Activations . | . . . . . . . . Robots Corrupted . | . . . . . . . . Combat Hostiles . | . . . . . . . . Parts Fried . | . . . . . . . . Impact Corruptions . | . . . . . . . . Robots Melted . | . . . . . . . . Combat Hostiles . | . . . . . . . . Parts Melted . | . . . . . . . . Heat Transferred 595 | . 148 . . . . . 447 Parts Sabotaged . | . . . . . . . . Parts Stolen . | . . . . . . . . Parts Stripped . | . . . . . . . . Power Chain Reactions 1 | . . . . . . . 1 Missiles Intercepted . | . . . . . . . . Alert | -11 -10 -10 -10 -9 -8 -7 -7 ------- Run | Scr Mat Min Exi Min Mat Fac Gar Peak Influence 562 | . 207 84 . . 122 65 562 Initial 51 | . . 44 . . . 51 45 Average 66 | . 83 55 . . 44 51 236 Maximum Alert Level 2 | . 1 . . . . . 2 Low Security (%) 94 | 100 94 100 . 100 100 100 54 Level 1 2 | . 5 . . . . . 18 Level 2 2 | . . . . . . . 26 Level 3 . | . . . . . . . . Level 4 . | . . . . . . . . Level 5 . | . . . . . . . . High Security . | . . . . . . . . Max Security . | . . . . . . . . Squads Dispatched 7 | . 2 . . . 4 1 . Investigation 1 | . 1 . . . . . . Extermination 1 | . . . . . . 1 . Reinforcement 2 | . 1 . . . 1 . . Assault 1 | . . . . . 1 . . Garrison 2 | . . . . . 2 . . Intercept . | . . . . . . . . Construction Impeded . | . . . . . . . . Haulers Reinforced . | . . . . . . . . Stealth | -11 -10 -10 -10 -9 -8 -7 -7 --------- Run | Scr Mat Min Exi Min Mat Fac Gar Distress Signals 1 | . . . . . 1 . . Communications Jammed . | . . . . . . . . Distress Signals . | . . . . . . . . Times Spotted 65 | . 20 2 . . 19 . 24 Peak Tracking Total 6 | . 4 2 . . 6 1 6 Tactical Retreats 9 | . 3 . . . 1 . 5 Traps | -11 -10 -10 -10 -9 -8 -7 -7 ------- Run | Scr Mat Min Exi Min Mat Fac Gar Traps Triggered 5 | . 3 . . . 1 . 1 Indirectly . | . . . . . . . . Trap Hack Attempts . | . . . . . . . . Triggered . | . . . . . . . . Disarmed . | . . . . . . . . Reprogrammed . | . . . . . . . . Reused . | . . . . . . . . Traps Extracted . | . . . . . . . . Installed . | . . . . . . . . Triggered . | . . . . . . . . Power Sources Rigged 6 | . . . . . 4 1 1 Exploded 4 | . . . . . 3 . 1 Machines | -11 -10 -10 -10 -9 -8 -7 -7 ---------- Run | Scr Mat Min Exi Min Mat Fac Gar Machines Disabled . | . . . . . . . . Max in Single Turn . | . . . . . . . . Garrison Access 1 | . . . . . 1 . . Machines Sabotaged . | . . . . . . . . Garrisons Compromised . | . . . . . . . . Overloaded Fab Kills . | . . . . . . . . Fab Network Shutdowns . | . . . . . . . . Hacking | -11 -10 -10 -10 -9 -8 -7 -7 --------- Run | Scr Mat Min Exi Min Mat Fac Gar Machines Accessed 11 | . 2 . 4 . 4 1 . Terminals 3 | . 2 . . . 1 . . Fabricators . | . . . . . . . . Repair Stations 1 | . . . . . 1 . . Recycling Units . | . . . . . . . . Scanalyzers 1 | . . . . . 1 . . Garrison Access 2 | . . . . . 1 1 . Total Hacks 68 | . 4 . 49 . 14 1 . Successful 65 | . 3 . 49 . 12 1 . Failed 3 | . 1 . . . 2 . . Catastrophic 1 | . . . . . 1 . . Database Lockouts . | . . . . . . . . Manual 2 | . . . 2 . . . . Terminals 6 | . 4 . . . 2 . . Fabricators . | . . . . . . . . Repair Stations 5 | . . . . . 5 . . Recycling Units . | . . . . . . . . Scanalyzers 6 | . . . . . 6 . . Garrison Access 2 | . . . . . 1 1 . Terminal Hacks 54 | . 3 . 49 . 2 . . Record 49 | . . . 49 . . . . Prototype ID Bank 1 | . 1 . . . . . . Unreport Threat 1 | . . . . . 1 . . Locate Traps 2 | . 1 . . . 1 . . Patrol Status 1 | . 1 . . . . . . Fabricator Hacks . | . . . . . . . . Repair Station Hacks 4 | . . . . . 4 . . Scan Component 2 | . . . . . 2 . . Repair 2 | . . . . . 2 . . Recycling Unit Hacks . | . . . . . . . . Scanalyzer 6 | . . . . . 6 . . Insert Component 3 | . . . . . 3 . . Analyze 3 | . . . . . 3 . . Garrison Access Hacks 1 | . . . . . . 1 . Unlock Access 1 | . . . . . . 1 . Unauthorized Hacks . | . . . . . . . . Terminals . | . . . . . . . . Fabricators . | . . . . . . . . Repair Stations . | . . . . . . . . Recycling Units . | . . . . . . . . Scanalyzers . | . . . . . . . . Garrison Access . | . . . . . . . . Data Cores Recovered . | . . . . . . . . Used . | . . . . . . . . Hacking Detections 4 | . 1 . . . 2 1 . Full Trace Events 2 | . 1 . . . 1 . . Feedback Events . | . . . . . . . . Feedback Blocked . | . . . . . . . . Robot Schematics Acquired . | . . . . . . . . Robots Built . | . . . . . . . . Matter . | . . . . . . . . Time . | . . . . . . . . Total Robot Build Rating . | . . . . . . . . Part Schematics Acquired 3 | . . . . . 3 . . Parts Built . | . . . . . . . . Matter . | . . . . . . . . Time . | . . . . . . . . Total Part Build Rating . | . . . . . . . . Parts Repaired 2 | . . . . . 2 . . Time 70 | . . . . . 70 . . Parts Recycled . | . . . . . . . . Recycled Matter . | . . . . . . . . Retrieved Matter . | . . . . . . . . Retrieved Components . | . . . . . . . . Parts Scanalyzed 3 | . . . . . 3 . . Part Schematics Acquired 3 | . . . . . 3 . . Parts Damaged . | . . . . . . . . Bothacking | -11 -10 -10 -10 -9 -8 -7 -7 ------------ Run | Scr Mat Min Exi Min Mat Fac Gar Used RIF Installer . | . . . . . . . . Robots Hacked 1 | . . . . . . . 1 Non-combat . | . . . . . . . . Combat 1 | . . . . . . . 1 Robot Hacks Applied 1 | . . . . . . . 1 parse_system 1 | . . . . . . . 1 Relay Couplers Released 2 | . . . . . 2 . . Machine Destruction 2 | . . . . . 2 . . Robots Rewired . | . . . . . . . . Allies Hacked . | . . . . . . . . Hacks Repelled . | . . . . . . . . Allies | -11 -10 -10 -10 -9 -8 -7 -7 -------- Run | Scr Mat Min Exi Min Mat Fac Gar Total Allies . | . . . . . . . . Largest Group . | . . . . . . . . Highest-Rated Group . | . . . . . . . . Highest-Rated Ally . | . . . . . . . . Total Orders . | . . . . . . . . Ally Attacks . | . . . . . . . . Total Damage . | . . . . . . . . Kills . | . . . . . . . . Allies Corrupted . | . . . . . . . . Allies Melted . | . . . . . . . . Intel | -11 -10 -10 -10 -9 -8 -7 -7 ------- Run | Scr Mat Min Exi Min Mat Fac Gar Robot Analysis Total . | . . . . . . . . Derelict Logs Recovered 2 | . . 1 . 1 . . . Drone Launches . | . . . . . . . . Drone Recoveries . | . . . . . . . . Exploration | -11 -10 -10 -10 -9 -8 -7 -7 ------------- Run | Scr Mat Min Exi Min Mat Fac Gar Turns Passed 6561 | 64 712 541 1987 564 1897 304 492 Spaces Moved 2859 | 44 311 280 868 235 767 176 178 Core 21 | 17 . . . . . . 4 Treads . | . . . . . . . . Legs 2838 | 27 311 280 868 235 767 176 174 Wheels . | . . . . . . . . Hover . | . . . . . . . . Flight . | . . . . . . . . Fastest Speed 50 | 50 120 180 120 240 150 150 100 Average Speed 188 | 120 162 180 226 240 161 150 170 Slowest Speed 1600 | 150 240 180 240 240 180 150 1600 Overloaded Moves . | . . . . . . . . Propulsion Burnouts . | . . . . . . . . Robots Hopped . | . . . . . . . . Cave-ins Triggered . | . . . . . . . . Exploration Rate (%) 38 | 3 42 54 94 41 39 5 33 Regions Visited 7 Branch Regions 3 Pre-discovered Areas 2 | . . 1 1 . . . . Known Exits Taken 1 | . . . . . . 1 . Unknown Exits Taken 6 | 1 1 1 1 1 1 . . Scrap Searched 1 | . . . . 1 . . . Spaces Dug . | . . . . . . . . Terrain Destroyed 101 | . . . . . 3 . 98 Melee . | . . . . . . . . Projectile 3 | . . . . . 3 . . AOE 98 | . . . . . . . 98 Terrain Rammed . | . . . . . . . . Walls Destroyed . | . . . . . . . . Machines Disabled . | . . . . . . . . Actions | -11 -10 -10 -10 -9 -8 -7 -7 --------- Run | Scr Mat Min Exi Min Mat Fac Gar Total 3804 | 55 456 307 890 236 1347 217 296 Wait 597 | . 59 20 . . 454 30 34 Move 2852 | 43 310 279 867 234 766 175 178 Hop . | . . . . . . . . Pick Up 100 | 7 27 1 12 2 33 3 15 Fast Attach 6 | . 2 . 1 . 2 . 1 Attach 32 | 5 5 . . . 4 4 14 Detach . | . . . . . . . . Swap 35 | . 8 1 . . 13 1 12 Drop 56 | . 13 1 9 . 27 3 3 Fire 120 | . 32 5 1 . 44 . 38 Melee . | . . . . . . . . Ram . | . . . . . . . . Kick . | . . . . . . . . Crush . | . . . . . . . . Escape Stasis . | . . . . . . . . Rewire . | . . . . . . . . Trap 6 | . . . . . 4 1 1 Miscellaneous . | . . . . . . . . Route ------- -11/Scrapyard -10/Materials -10/Mines -10/Exiles (discovered 2 exits: [*Min x2]) -9/Mines -8/Materials -7/Factory -7/Garrison History --------- Turn | Location | Event 2 | -11/Scrapyard | Met Revision 17 19 | -11/Scrapyard | Discovered new exit (range 16) 65 | -11/Scrapyard | Entered Materials 310 | -10/Materials | Build established: Mutant 684 | -10/Materials | Discovered new exit (range 11) 777 | -10/Materials | Entered Mines 790 | -10/Mines | A weapon hastily lodged in a ceiling crevice suddenly fell to the ground 1298 | -10/Mines | Learned location of Zion (-6) 1310 | -10/Mines | Deemed a non-threat by the Exiles lab entrance 1310 | -10/Mines | Discovered new exit (range 5) 1318 | -10/Mines | Entered Exiles 1354 | -10/Exiles | Discovered new exit (range 14) 1420 | -10/Exiles | Met 8R-AWN 1458 | -10/Exiles | Met EX-HEX 1543 | -10/Exiles | Met EX-DEC 1949 | -10/Exiles | Build established: Hauler-Mutant 2002 | -10/Exiles | Visited The Gauntlet 2370 | -10/Exiles | Met EX-BIN 2567 | -10/Exiles | Aligned with FarCom system 2570 | -10/Exiles | Given EX-Vault access code 2632 | -10/Exiles | Opened EX-Vault 2646 | -10/Exiles | Found Prototype Device 2703 | -10/Exiles | Warned to stay clear of 0b10 Research branches 2897 | -10/Exiles | Discovered new exit (range 14) 3305 | -10/Exiles | Left Exiles lab with PSU Rigger 3305 | -10/Exiles | Entered Mines 3340 | -9/Mines | Met a Derelict bent on vengeance 3461 | -9/Mines | Learned Materials stockpile data 3795 | -9/Mines | Discovered new exit (range 5) 3869 | -9/Mines | Entered Materials 3869 | -8/Materials | Evolved 4 slots: Propulsion x2, Utility x2 3871 | -8/Materials | Identified PSU Rigger 4042 | -8/Materials | Garrison activated, responded to threat 4467 | -8/Materials | Build established: Scavenger-Mutant 4712 | -8/Materials | Repaired Hvy. Assault Rifle 4751 | -8/Materials | Repaired Lgt. Nuclear Core 4860 | -8/Materials | Build established: Hauler-Mutant 5709 | -8/Materials | Discovered new exit (range 16) 5766 | -8/Materials | Entered Factory 5766 | -7/Factory | Evolved 2 slots: Power x1, Propulsion x1 6069 | -7/Factory | Identified exit to Garrison 6070 | -7/Factory | Entered Garrison 6280 | -7/Garrison | Lost 4 parts (1p1n2w) 6336 | -7/Garrison | Triggered checkpoint 6502 | -7/Garrison | Spotted B-75 Beast 6531 | -7/Garrison | Core integrity fell below 50% 6549 | -7/Garrison | Core integrity fell below 20% 6562 | -7/Garrison | Destroyed by B-75 Beast with Magnetic Acceleration Cannon Last Messages --------------- Aluminum Leg destroyed. The unstable cave ceiling collapses. Knocked back. Lgt. Nuclear Core destroyed. Nuclear Core destroyed. Humpback destroyed. Acquired Remote Datajack. The unstable cave ceiling collapses. Jacked B-75 Beast... >>parse_system Reading system data... Acquired Imp. EM Pulse Cannon. Acquired Lgt. Deuterium Engine. The unstable cave ceiling collapses. Aluminum Leg crushed. The unstable cave ceiling collapses. Imp. Heat Sink crushed. Lgt. Deuterium Engine destroyed. Imp. EM Pulse Cannon destroyed. Acquired Imp. EM Pulse Cannon. Map ----- +----------------------------------------------------+ | ??????????????????????????????## ##""""#######??? | | ??????????????????????????????# ??? | | ????????????????????????????? ??? | | ?????????????????????????????? ? ???? | | ??????????????????????????????# ##^^ ## #???? | | ??????????????????????????????# # #???? | | ?????????????????????????????g" "???? | | ??????????????????????????????" "???? | | ?????????????????????????????g" ^ "?### | | ??????????????????????????????" =[ ^ "?# | | ??????????????????????????????# ### | | ??????????????????????????????# # # # # | | ??????????????????????????????# # | | ??????????????????????????????+ * = | | ??????????????????????????????# # | | ??????????????????????????????## ## # # # | | ???????????????????????????????# ## # # | | ???????????????????????????????# ####### # ## | | ???????????????????????????#???# #?????## #? | | ????????????????????###???? ???# #?????## ##? | | ????????????????????? ??? #???# #?????# ## ## | | ?????????????#?????### ??? #???# #????# | | ?????????????# ?#?# # ### ????# #????# # # ## | | ??????????????# # # # # ????# #????## # | | ???????????#### # Y!!;###### #?????## "### | | ???????????# BB%!!@ ! ##?????# "#### | | ???????????# %BB[ !!! ;#?????# | | ?????????????## # # #########?????# | | ??????????????# *#!#?????????????# | | ??????????????# ### #### #?????????????######### | | ??????????????????# ???# #?????????????????????? | | ??????????????????# ???? #?????????????????????? | | ??????????????????# ????###?????????????????????? | | ??????????????????# ?????????????????????????????? | | ??????????????????# ?????????????????????????????? | | ??????????????????#??????????????????????????????? | | ?????????????????????????????????????????????????? | | ?????????????????????????????????????????????????? | | ?????????????????????????????????????????????????? | | ?????????????????????????????????????????????????? | | ?????????????????????????????????????????????????? | | ?????????????????????????????????????????????????? | | ?????????????????????????????????????????????????? | | ?????????????????????????????????????????????????? | | ?????????????????????????????????????????????????? | | ?????????????????????????????????????????????????? | | ?????????????????????????????????????????????????? | | ?????????????????????????????????????????????????? | | ?????????????????????????????????????????????????? | | ?????????????????????????????????????????????????? | +----------------------------------------------------+ Best States ------------- Heat Dissipation 48 Energy Generation 25 Energy Capacity 430 Matter Stores 305 Matter Capacity 400 Sight Range 16 Robot Scan Range 10 Terrain Scan Density 10 Armor Coverage 150 Resistance: KI 20 Evasion (%) 40 Targeting Accuracy 5 Target Analysis 5 Item Schematics ----------------- Reactive Plating | -8/Materials | Scanalyzed Target Analyzer | -8/Materials | Scanalyzed Hvy. Assault Rifle | -8/Materials | Scanalyzed Robot Schematics ------------------ None Fabricated ------------ Nothing Alien Tech Used ----------------- None Achievements -------------- None Challenges ------------ None Game ------ Seed ParticleHardenedSuperbattery Manual? 0 Play Time 01:09:07 Cumulative 19.8 hours Start 2021.08.16 @ 01:49:18 End 2021.08.16 @ 04:22:26 Sessions 3 Manual Loads 0 Difficulty Rogue Special Mode None Game No. 29 Rogue 29 Adventurer 0 Explorer 0 Win Type - Total 0 Types 0/0/0/0/0/0/0/0/0 Lore% 22 Gallery% 26 Achievement% 20 Wizard Run 0 Options --------- ASCII 0 Keyboard 0 Movement Mouse Keybinds 0 Fullscreen 1 Font 24/Smallcaps Map View 76x50 Tactical HUD 0 Map Filters NONE Filters NONE Steam 1 RUN: d163523b-5aab-4735-b534-46d05ca65458